Workbook

Sheet دليل الحسابـــــــــــــات
A2: دليل الحسابـــــــــــــات
A4: رقم مسلسل | B4: رقـــــم الحساب | C4: إسم الحســـــــــــاب | D4: رقم المجموعة الفرعية | E4: إســـم المجموعة الفرعية | F4: رقم المجموعة الفرعية | G4: إســـم المجموعة الفرعية | H4: رقم المجموعة الرئيسية | I4: اسم المجموعة الرئيسية | J4: القوائم | K4: الحساب الختامى
A5: No | B5: Codes | C5: Account | D5: Subgroup number | E5: Subgroup Name | F5: Subgroup number | G5: Subgroup Name | H5: Main group number | I5: Main group name | J5: Lists | K5: Final account
A6: 1 | B6: 1111 | C6: أرض 1 | D6: 111 | E6: أراضي ومباني | F6: 11 | G6: الأصول الثابته | H6: 1 | I6: الأصـــــــــــــــول | J6: الميزانية | K6: الميزانية
A7: 2 | B7: 1121 | C7: أثاث مكاتب | D7: 112 | E7: أثاث وتجهيزات | F7: 11 | G7: الأصول الثابته | H7: 1 | I7: الأصـــــــــــــــول | J7: الميزانية | K7: الميزانية
A8: 3 | B8: 1122 | C8: سجاجيد | D8: 112 | E8: أثاث وتجهيزات | F8: 11 | G8: الأصول الثابته | H8: 1 | I8: الأصـــــــــــــــول | J8: الميزانية | K8: الميزانية
A9: 4 | B9: 1123 | C9: خزائن | D9: 112 | E9: أثاث وتجهيزات | F9: 11 | G9: الأصول الثابته | H9: 1 | I9: الأصـــــــــــــــول | J9: الميزانية | K9: الميزانية
A10: 5 | B10: 1124 | C10: نجف وأبليكات | D10: 112 | E10: أثاث وتجهيزات | F10: 11 | G10: الأصول الثابته | H10: 1 | I10: الأصـــــــــــــــول | J10: الميزانية | K10: الميزانية
A11: 6 | B11: 1125 | C11: أنتريهات | D11: 112 | E11: أثاث وتجهيزات | F11: 11 | G11: الأصول الثابته | H11: 1 | I11: الأصـــــــــــــــول | J11: الميزانية | K11: الميزانية
A12: 7 | B12: 1126 | C12: ستائـــــــــــر | D12: 112 | E12: أثاث وتجهيزات | F12: 11 | G12: الأصول الثابته | H12: 1 | I12: الأصـــــــــــــــول | J12: الميزانية | K12: الميزانية
A13: 8 | B13: 1129 | C13: تجهيزات مكاتب أخرى | D13: 112 | E13: أثاث وتجهيزات | F13: 11 | G13: الأصول الثابته | H13: 1 | I13: الأصـــــــــــــــول | J13: الميزانية | K13: الميزانية
A14: 9 | B14: 1131 | C14: تكييفات ومراوح | D14: 113 | E14: الات ومعدات | F14: 11 | G14: الأصول الثابته | H14: 1 | I14: الأصـــــــــــــــول | J14: الميزانية | K14: الميزانية
A15: 10 | B15: 1132 | C15: أجهزة موبايل | D15: 113 | E15: الات ومعدات | F15: 11 | G15: الأصول الثابته | H15: 1 | I15: الأصـــــــــــــــول | J15: الميزانية | K15: الميزانية
A16: 11 | B16: 1133 | C16: ماكينات تصوير | D16: 113 | E16: الات ومعدات | F16: 11 | G16: الأصول الثابته | H16: 1 | I16: الأصـــــــــــــــول | J16: الميزانية | K16: الميزانية
A17: 12 | B17: 1134 | C17: أجهزة كمبيوتر | D17: 113 | E17: الات ومعدات | F17: 11 | G17: الأصول الثابته | H17: 1 | I17: الأصـــــــــــــــول | J17: الميزانية | K17: الميزانية
A18: 13 | B18: 1135 | C18: معدات كمبيوتر | D18: 113 | E18: الات ومعدات | F18: 11 | G18: الأصول الثابته | H18: 1 | I18: الأصـــــــــــــــول | J18: الميزانية | K18: الميزانية
A19: 14 | B19: 1136 | C19: موقع الشركه | D19: 113 | E19: الات ومعدات | F19: 11 | G19: الأصول الثابته | H19: 1 | I19: الأصـــــــــــــــول | J19: الميزانية | K19: الميزانية
A20: 15 | B20: 1141 | C20: سياره 1 | D20: 114 | E20: سيارات | F20: 11 | G20: الأصول الثابته | H20: 1 | I20: الأصـــــــــــــــول | J20: الميزانية | K20: الميزانية
A21: 16 | B21: 1151 | C21: إستثمار طويل الأجل 1 | D21: 115 | E21: استثمارات طويلة الاجل | F21: 11 | G21: الأصول الثابته | H21: 1 | I21: الأصـــــــــــــــول | J21: الميزانية | K21: الميزانية
A22: 17 | B22: 1211 | C22: خزينة الشركه - جنيه مصري | D22: 121 | E22: الخزينة | F22: 12 | G22: الاصول المتداولة | H22: 1 | I22: الأصـــــــــــــــول | J22: الميزانية | K22: الميزانية
A23: 18 | B23: 1212 | C23: خزينة الشركه - دولار أمريكي | D23: 121 | E23: الخزينة | F23: 12 | G23: الاصول المتداولة | H23: 1 | I23: الأصـــــــــــــــول | J23: الميزانية | K23: الميزانية
A24: 24 | B24: 1235 | C24: بنك مصر ( دولار) | D24: 123 | E24: بنــــــــــــــوك | F24: 12 | G24: الاصول المتداولة | H24: 1 | I24: الأصـــــــــــــــول | J24: الميزانية | K24: الميزانية
A25: 25 | B25: 1236 | C25: بنك مصر ( ريال سعودي) | D25: 123 | E25: بنــــــــــــــوك | F25: 12 | G25: الاصول المتداولة | H25: 1 | I25: الأصـــــــــــــــول | J25: الميزانية | K25: الميزانية
A26: 26 | B26: 1237 | C26: بنك مصر ( جنيه مصري ) | D26: 123 | E26: بنــــــــــــــوك | F26: 12 | G26: الاصول المتداولة | H26: 1 | I26: الأصـــــــــــــــول | J26: الميزانية | K26: الميزانية
A27: 28 | B27: 1241 | C27: وديعة بنك 1 | D27: 124 | E27: استثمارات قصيرة الاجل | F27: 12 | G27: الاصول المتداولة | H27: 1 | I27: الأصـــــــــــــــول | J27: الميزانية | K27: الميزانية
A28: 29 | B28: 1311 | C28: عملاء الشركه | D28: 131 | E28: عمـــــــــــــــــــــلاء | F28: 13 | G28: مدينون وحسابات قبض | H28: 1 | I28: الأصـــــــــــــــول | J28: الميزانية | K28: الميزانية
A29: 30 | B29: 1312 | C29: عمــــــلاء وكالات | D29: 131 | E29: عمـــــــــــــــــــــلاء | F29: 13 | G29: مدينون وحسابات قبض | H29: 1 | I29: الأصـــــــــــــــول | J29: الميزانية | K29: الميزانية
A30: 31 | B30: 1313 | C30: عمــــــلاء حجز كاش | D30: 131 | E30: عمـــــــــــــــــــــلاء | F30: 13 | G30: مدينون وحسابات قبض | H30: 1 | I30: الأصـــــــــــــــول | J30: الميزانية | K30: الميزانية
A31: 32 | B31: 1314 | C31: عملاء بيع خارجي Corprate | D31: 131 | E31: عمـــــــــــــــــــــلاء | F31: 13 | G31: مدينون وحسابات قبض | H31: 1 | I31: الأصـــــــــــــــول | J31: الميزانية | K31: الميزانية
A32: 33 | B32: 1321 | C32: عهـد موظفين | D32: 132 | E32: عهــــــــــــــد | F32: 13 | G32: مدينون وحسابات قبض | H32: 1 | I32: الأصـــــــــــــــول | J32: الميزانية | K32: الميزانية
A33: 34 | B33: 1322 | C33: عهــــد إداره | D33: 132 | E33: عهــــــــــــــد | F33: 13 | G33: مدينون وحسابات قبض | H33: 1 | I33: الأصـــــــــــــــول | J33: الميزانية | K33: الميزانية
A34: 35 | B34: 1323 | C34: عهد وكالات | D34: 132 | E34: عهــــــــــــــد | F34: 13 | G34: مدينون وحسابات قبض | H34: 1 | I34: الأصـــــــــــــــول | J34: الميزانية | K34: الميزانية
A35: 36 | B35: 1331 | C35: سلــــــف موظفين | D35: 133 | E35: سلـــــف | F35: 13 | G35: مدينون وحسابات قبض | H35: 1 | I35: الأصـــــــــــــــول | J35: الميزانية | K35: الميزانية
A36: 37 | B36: 1332 | C36: سلــــــف إداره | D36: 133 | E36: سلـــــف | F36: 13 | G36: مدينون وحسابات قبض | H36: 1 | I36: الأصـــــــــــــــول | J36: الميزانية | K36: الميزانية
A37: 38 | B37: 1341 | C37: تأمينات لدى الغير | D37: 134 | E37: مدفوعات مقدمه | F37: 13 | G37: مدينون وحسابات قبض | H37: 1 | I37: الأصـــــــــــــــول | J37: الميزانية | K37: الميزانية
A38: 39 | B38: 1351 | C38: مصروفات مدفوعه مقدماً | D38: 135 | E38: أرصده مدينه أخرى | F38: 13 | G38: مدينون وحسابات قبض | H38: 1 | I38: الأصـــــــــــــــول | J38: الميزانية | K38: الميزانية
A39: 40 | B39: 1352 | C39: إيرادات مستحقه | D39: 135 | E39: أرصده مدينه أخرى | F39: 13 | G39: مدينون وحسابات قبض | H39: 1 | I39: الأصـــــــــــــــول | J39: الميزانية | K39: الميزانية
A40: 41 | B40: 1353 | C40: جاري شركاء مدين يوسف الدخيل | D40: 135 | E40: أرصده مدينه أخرى | F40: 13 | G40: مدينون وحسابات قبض | H40: 1 | I40: الأصـــــــــــــــول | J40: الميزانية | K40: الميزانية
A41: 42 | B41: 1354 | C41: جاري شركاء مدين عادل نور | D41: 135 | E41: أرصده مدينه أخرى | F41: 13 | G41: مدينون وحسابات قبض | H41: 1 | I41: الأصـــــــــــــــول | J41: الميزانية | K41: الميزانية
A42: 43 | B42: 2111 | C42: مســــــاهمة الشريك يوسف الدخيل | D42: 211 | E42: رأس المال | F42: 21 | G42: راس المال | H42: 2 | I42: الخصوم وحقوق الملكية | J42: الميزانية | K42: الميزانية
A43: 44 | B43: 2112 | C43: مساهمة الشريك عادل نور | D43: 211 | E43: رأس المال | F43: 21 | G43: راس المال | H43: 2 | I43: الخصوم وحقوق الملكية | J43: الميزانية | K43: الميزانية
A44: 45 | B44: 2121 | C44: أربـــاح وخسائر العام | D44: 212 | E44: ارباح مرحلة | F44: 21 | G44: راس المال | H44: 2 | I44: الخصوم وحقوق الملكية | J44: الميزانية | K44: الميزانية
A45: 46 | B45: 2122 | C45: أرباح وخسائر سنوات سابقه | D45: 212 | E45: ارباح مرحلة | F45: 21 | G45: راس المال | H45: 2 | I45: الخصوم وحقوق الملكية | J45: الميزانية | K45: الميزانية
A46: 47 | B46: 2211 | C46: إحتياطي عام 2.5% | D46: 221 | E46: احتياطى عام | F46: 22 | G46: احتياطيات | H46: 2 | I46: الخصوم وحقوق الملكية | J46: الميزانية | K46: الميزانية
A47: 48 | B47: 2212 | C47: احتياطى شراء اصول ثابتة | D47: 221 | E47: احتياطى عام | F47: 22 | G47: احتياطيات | H47: 2 | I47: الخصوم وحقوق الملكية | J47: الميزانية | K47: الميزانية
A48: 56 | B48: 2411 | C48: قرض طويل الأجل 1 | D48: 241 | E48: قروض طويلة الاجل | F48: 24 | G48: التزامات طويلة الاجل | H48: 2 | I48: الخصوم وحقوق الملكية | J48: الميزانية | K48: الميزانية
A49: 57 | B49: 2421 | C49: التزامات طويلة الأجل 1 | D49: 242 | E49: التزامات طويلة الاجل اخرى | F49: 24 | G49: التزامات طويلة الاجل | H49: 2 | I49: الخصوم وحقوق الملكية | J49: الميزانية | K49: الميزانية
A50: 58 | B50: 2511 | C50: موردين فنادق | D50: 251 | E50: المورديــــــــــــن | F50: 25 | G50: التزامات قصيرة الاجل | H50: 2 | I50: الخصوم وحقوق الملكية | J50: الميزانية | K50: الميزانية
A51: 59 | B51: 2512 | C51: موردين شركات سياحه | D51: 251 | E51: المورديــــــــــــن | F51: 25 | G51: التزامات قصيرة الاجل | H51: 2 | I51: الخصوم وحقوق الملكية | J51: الميزانية | K51: الميزانية
A52: 60 | B52: 2513 | C52: موردين شركات طيران | D52: 251 | E52: المورديــــــــــــن | F52: 25 | G52: التزامات قصيرة الاجل | H52: 2 | I52: الخصوم وحقوق الملكية | J52: الميزانية | K52: الميزانية
A53: 61 | B53: 2514 | C53: موردين شركات نقل سياحي | D53: 251 | E53: المورديــــــــــــن | F53: 25 | G53: التزامات قصيرة الاجل | H53: 2 | I53: الخصوم وحقوق الملكية | J53: الميزانية | K53: الميزانية
A54: 62 | B54: 2515 | C54: موردين تأشيرات | D54: 251 | E54: المورديــــــــــــن | F54: 25 | G54: التزامات قصيرة الاجل | H54: 2 | I54: الخصوم وحقوق الملكية | J54: الميزانية | K54: الميزانية
A55: 63 | B55: 2516 | C55: موردين كردت كارت الشركه | D55: 251 | E55: المورديــــــــــــن | F55: 25 | G55: التزامات قصيرة الاجل | H55: 2 | I55: الخصوم وحقوق الملكية | J55: الميزانية | K55: الميزانية
A56: 64 | B56: 2517 | C56: موردين تشغيل | D56: 251 | E56: المورديــــــــــــن | F56: 25 | G56: التزامات قصيرة الاجل | H56: 2 | I56: الخصوم وحقوق الملكية | J56: الميزانية | K56: الميزانية
A57: 65 | B57: 2521 | C57: شيكات (دفع ) تحت التحصيل | D57: 252 | E57: اوراق دفع | F57: 25 | G57: التزامات قصيرة الاجل | H57: 2 | I57: الخصوم وحقوق الملكية | J57: الميزانية | K57: الميزانية
A58: 66 | B58: 2611 | C58: تأمينات مستحقه | D58: 261 | E58: مصروفات مستحقه دائنه | F58: 26 | G58: ارصدة دائنة اخرى | H58: 2 | I58: الخصوم وحقوق الملكية | J58: الميزانية | K58: الميزانية
A59: 67 | B59: 2612 | C59: ضــــــــرائب دائنه | D59: 261 | E59: مصروفات مستحقه دائنه | F59: 26 | G59: ارصدة دائنة اخرى | H59: 2 | I59: الخصوم وحقوق الملكية | J59: الميزانية | K59: الميزانية
A60: 68 | B60: 2621 | C60: ايرادات مستحقة دائنه | D60: 262 | E60: ايرادات مستحقة دائنه | F60: 26 | G60: ارصدة دائنة اخرى | H60: 2 | I60: الخصوم وحقوق الملكية | J60: الميزانية | K60: الميزانية
A61: 69 | B61: 2631 | C61: جاري شركــــــــاء دائن يوسف الدخيل | D61: 263 | E61: جاري شركــــــــاء | F61: 26 | G61: ارصدة دائنة اخرى | H61: 2 | I61: الخصوم وحقوق الملكية | J61: الميزانية | K61: الميزانية
A62: 70 | B62: 2632 | C62: جاري شركــــــــاء دائن عادل نور | D62: 263 | E62: جاري شركــــــــاء | F62: 26 | G62: ارصدة دائنة اخرى | H62: 2 | I62: الخصوم وحقوق الملكية | J62: الميزانية | K62: الميزانية
A63: 71 | B63: 2641 | C63: مرتبات مستحقه | D63: 264 | E63: مستحقات أخرى | F63: 26 | G63: ارصدة دائنة اخرى | H63: 2 | I63: الخصوم وحقوق الملكية | J63: الميزانية | K63: الميزانية
A64: 72 | B64: 2642 | C64: إيجـــــــــــارات مستحقه | D64: 264 | E64: مستحقات أخرى | F64: 26 | G64: ارصدة دائنة اخرى | H64: 2 | I64: الخصوم وحقوق الملكية | J64: الميزانية | K64: الميزانية
A65: 73 | B65: 2643 | C65: مصاريف مراجعه مستحقه | D65: 264 | E65: مستحقات أخرى | F65: 26 | G65: ارصدة دائنة اخرى | H65: 2 | I65: الخصوم وحقوق الملكية | J65: الميزانية | K65: الميزانية
A66: 74 | B66: 2644 | C66: مصــــــاريف إدارية مستحقه | D66: 264 | E66: مستحقات أخرى | F66: 26 | G66: ارصدة دائنة اخرى | H66: 2 | I66: الخصوم وحقوق الملكية | J66: الميزانية | K66: الميزانية
A67: 75 | B67: 2645 | C67: فواتير تليفونات مستحقه | D67: 264 | E67: مستحقات أخرى | F67: 26 | G67: ارصدة دائنة اخرى | H67: 2 | I67: الخصوم وحقوق الملكية | J67: الميزانية | K67: الميزانية
A68: 76 | B68: 2646 | C68: فواتير موبايلات مستحقه | D68: 264 | E68: مستحقات أخرى | F68: 26 | G68: ارصدة دائنة اخرى | H68: 2 | I68: الخصوم وحقوق الملكية | J68: الميزانية | K68: الميزانية
A69: 77 | B69: 2647 | C69: فواتير موبايلات مستحقه | D69: 264 | E69: مستحقات أخرى | F69: 26 | G69: ارصدة دائنة اخرى | H69: 2 | I69: الخصوم وحقوق الملكية | J69: الميزانية | K69: الميزانية
A70: 78 | B70: 3111 | C70: مصاريف مرتبات ومكافآت | D70: 311 | E70: مصاريف مرتبات ومكافآت | F70: 31 | G70: مصـاريف تشغيل | H70: 3 | I70: المصروفات | J70: قائمة الدخل | K70: المتاجرة
A71: 79 | B71: 3121 | C71: مصاريف تليفونات أرضي | D71: 312 | E71: مصاريف إتصــــــالات | F71: 31 | G71: مصـاريف تشغيل | H71: 3 | I71: المصروفات | J71: قائمة الدخل | K71: المتاجرة
A72: 80 | B72: 3122 | C72: مصاريف مكالمات موبايلات | D72: 312 | E72: مصاريف إتصــــــالات | F72: 31 | G72: مصـاريف تشغيل | H72: 3 | I72: المصروفات | J72: قائمة الدخل | K72: المتاجرة
A73: 81 | B73: 3123 | C73: مصاريف خطوط شحن | D73: 312 | E73: مصاريف إتصــــــالات | F73: 31 | G73: مصـاريف تشغيل | H73: 3 | I73: المصروفات | J73: قائمة الدخل | K73: الارباح والخسائر
A74: 83 | B74: 3125 | C74: مصاريف كروت شحن مصري | D74: 312 | E74: مصاريف إتصــــــالات | F74: 31 | G74: مصـاريف تشغيل | H74: 3 | I74: المصروفات | J74: قائمة الدخل | K74: الارباح والخسائر
A75: 85 | B75: 3127 | C75: مصاريف تركيبات تليفونات | D75: 312 | E75: مصاريف إتصــــــالات | F75: 31 | G75: مصـاريف تشغيل | H75: 3 | I75: المصروفات | J75: قائمة الدخل | K75: الارباح والخسائر
A76: 86 | B76: 3128 | C76: مصاريف كمبيوتر وشبكات | D76: 312 | E76: مصاريف إتصــــــالات | F76: 31 | G76: مصـاريف تشغيل | H76: 3 | I76: المصروفات | J76: قائمة الدخل | K76: الارباح والخسائر
A77: 87 | B77: 3131 | C77: مصاريف حجز فنادق عملاء مدفوعه | D77: 313 | E77: مصاريف خدمات عملاء مدفوعه | F77: 31 | G77: مصـاريف تشغيل | H77: 3 | I77: المصروفات | J77: قائمة الدخل | K77: الارباح والخسائر
A78: 88 | B78: 3132 | C78: مصاريف حجز طيران عملاء مدفوعه | D78: 313 | E78: مصاريف خدمات عملاء مدفوعه | F78: 31 | G78: مصـاريف تشغيل | H78: 3 | I78: المصروفات | J78: قائمة الدخل | K78: الارباح والخسائر
A79: 107 | B79: 3161 | C79: مصاريف بنكيه | D79: 316 | E79: مصاريف البنوك | F79: 31 | G79: مصـاريف تشغيل | H79: 3 | I79: المصروفات | J79: قائمة الدخل | K79: الارباح والخسائر
A80: 108 | B80: 3162 | C80: مصاريف عمولات بنكيه | D80: 316 | E80: مصاريف البنوك | F80: 31 | G80: مصـاريف تشغيل | H80: 3 | I80: المصروفات | J80: قائمة الدخل | K80: الارباح والخسائر
A81: 109 | B81: 3171 | C81: مصاريف عمولات تسويق وكالات | D81: 317 | E81: مصاريف عمولات تسويق | F81: 31 | G81: مصـاريف تشغيل | H81: 3 | I81: المصروفات | J81: قائمة الدخل | K81: الارباح والخسائر
A82: 110 | B82: 3172 | C82: مصاريف عمولات تسويق خارجي | D82: 317 | E82: مصاريف عمولات تسويق | F82: 31 | G82: مصـاريف تشغيل | H82: 3 | I82: المصروفات | J82: قائمة الدخل | K82: الارباح والخسائر
A83: 111 | B83: 3181 | C83: مصاريف بريد | D83: 318 | E83: مصاريف تشغيل أخرى | F83: 31 | G83: مصـاريف تشغيل | H83: 3 | I83: المصروفات | J83: قائمة الدخل | K83: الارباح والخسائر
A84: 112 | B84: 3182 | C84: مصاريف مطبوعات | D84: 318 | E84: مصاريف تشغيل أخرى | F84: 31 | G84: مصـاريف تشغيل | H84: 3 | I84: المصروفات | J84: قائمة الدخل | K84: الارباح والخسائر
A85: 113 | B85: 3183 | C85: مصاريف داتا | D85: 318 | E85: مصاريف تشغيل أخرى | F85: 31 | G85: مصـاريف تشغيل | H85: 3 | I85: المصروفات | J85: قائمة الدخل | K85: الارباح والخسائر
A86: 114 | B86: 3184 | C86: مصاريف رحلات عمل | D86: 318 | E86: مصاريف تشغيل أخرى | F86: 31 | G86: مصـاريف تشغيل | H86: 3 | I86: المصروفات | J86: قائمة الدخل | K86: الارباح والخسائر
A87: 115 | B87: 3185 | C87: مصاريف خصم كروت | D87: 318 | E87: مصاريف تشغيل أخرى | F87: 31 | G87: مصـاريف تشغيل | H87: 3 | I87: المصروفات | J87: قائمة الدخل | K87: الارباح والخسائر
A88: 116 | B88: 3191 | C88: مصاريف دعايه وإعلان وترويج | D88: 319 | E88: مصاريف دعايه وإعلان وترويج وإستقبالات | F88: 31 | G88: مصـاريف تشغيل | H88: 3 | I88: المصروفات | J88: قائمة الدخل | K88: الارباح والخسائر
A89: 117 | B89: 3192 | C89: مصاريف علاقات عامه وإستقبال | D89: 319 | E89: مصاريف دعايه وإعلان وترويج وإستقبالات | F89: 31 | G89: مصـاريف تشغيل | H89: 3 | I89: المصروفات | J89: قائمة الدخل | K89: الارباح والخسائر
A90: 118 | B90: 3211 | C90: مرتبات ومكافأت عموميه | D90: 321 | E90: مرتبات ومكافأت عموميه | F90: 32 | G90: مصاريف عموميه وإداريه | H90: 3 | I90: المصروفات | J90: قائمة الدخل | K90: الارباح والخسائر
A91: 119 | B91: 3221 | C91: حصة الشركه في التأمينات عموميه | D91: 322 | E91: حصة الشركه في التأمينات عموميه | F91: 32 | G91: مصاريف عموميه وإداريه | H91: 3 | I91: المصروفات | J91: قائمة الدخل | K91: الارباح والخسائر
A92: 120 | B92: 3231 | C92: مصاريف مياه عموميه | D92: 323 | E92: مياه وكهرباء وغاز عموميه | F92: 32 | G92: مصاريف عموميه وإداريه | H92: 3 | I92: المصروفات | J92: قائمة الدخل | K92: الارباح والخسائر
A93: 121 | B93: 3232 | C93: مصاريف كهرباء عموميه | D93: 323 | E93: مياه وكهرباء وغاز عموميه | F93: 32 | G93: مصاريف عموميه وإداريه | H93: 3 | I93: المصروفات | J93: قائمة الدخل | K93: الارباح والخسائر
A94: 122 | B94: 3233 | C94: مصاريف غاز عموميه | D94: 323 | E94: مياه وكهرباء وغاز عموميه | F94: 32 | G94: مصاريف عموميه وإداريه | H94: 3 | I94: المصروفات | J94: قائمة الدخل | K94: الارباح والخسائر
A95: 123 | B95: 3241 | C95: مصاريف إيجار | D95: 324 | E95: مصـــــاريف إيجار | F95: 32 | G95: مصاريف عموميه وإداريه | H95: 3 | I95: المصروفات | J95: قائمة الدخل | K95: الارباح والخسائر
A96: 124 | B96: 3251 | C96: مصاريف بوفيه | D96: 325 | E96: مصاريف بوفيه وترفيه | F96: 32 | G96: مصاريف عموميه وإداريه | H96: 3 | I96: المصروفات | J96: قائمة الدخل | K96: الارباح والخسائر
A97: 125 | B97: 3252 | C97: مصاريف ترفيه | D97: 325 | E97: مصاريف بوفيه وترفيه | F97: 32 | G97: مصاريف عموميه وإداريه | H97: 3 | I97: المصروفات | J97: قائمة الدخل | K97: الارباح والخسائر
A98: 126 | B98: 3261 | C98: مصاريف نقل مستلزمات الشركه | D98: 326 | E98: مصاريف نقل وإنتقالات | F98: 32 | G98: مصاريف عموميه وإداريه | H98: 3 | I98: المصروفات | J98: قائمة الدخل | K98: الارباح والخسائر
A99: 127 | B99: 3262 | C99: مصاريف إنتقالات موظفين عموميه | D99: 326 | E99: مصاريف نقل وإنتقالات | F99: 32 | G99: مصاريف عموميه وإداريه | H99: 3 | I99: المصروفات | J99: قائمة الدخل | K99: الارباح والخسائر
A100: 128 | B100: 32701 | C100: مواد تعبئة وتغليف | D100: 327 | E100: مصروفات عموميه وإداريه أخرى | F100: 32 | G100: مصاريف عموميه وإداريه | H100: 3 | I100: المصروفات | J100: قائمة الدخل | K100: الارباح والخسائر
A101: 129 | B101: 32702 | C101: خصم مسموح به | D101: 327 | E101: مصروفات عموميه وإداريه أخرى | F101: 32 | G101: مصاريف عموميه وإداريه | H101: 3 | I101: المصروفات | J101: قائمة الدخل | K101: الارباح والخسائر
A102: 130 | B102: 32703 | C102: مصاريف مكتب أخرى عموميه | D102: 327 | E102: مصروفات عموميه وإداريه أخرى | F102: 32 | G102: مصاريف عموميه وإداريه | H102: 3 | I102: المصروفات | J102: قائمة الدخل | K102: الارباح والخسائر
A103: 131 | B103: 32704 | C103: مصاريف أدوات كتابيه عموميه | D103: 327 | E103: مصروفات عموميه وإداريه أخرى | F103: 32 | G103: مصاريف عموميه وإداريه | H103: 3 | I103: المصروفات | J103: قائمة الدخل | K103: الارباح والخسائر
A104: 132 | B104: 32705 | C104: مصاريف صيانه عموميه | D104: 327 | E104: مصروفات عموميه وإداريه أخرى | F104: 32 | G104: مصاريف عموميه وإداريه | H104: 3 | I104: المصروفات | J104: قائمة الدخل | K104: الارباح والخسائر
A105: 133 | B105: 32706 | C105: إكراميات عموميه | D105: 327 | E105: مصروفات عموميه وإداريه أخرى | F105: 32 | G105: مصاريف عموميه وإداريه | H105: 3 | I105: المصروفات | J105: قائمة الدخل | K105: الارباح والخسائر
A106: 134 | B106: 32707 | C106: مصاريف مراجعه عموميه | D106: 327 | E106: مصروفات عموميه وإداريه أخرى | F106: 32 | G106: مصاريف عموميه وإداريه | H106: 3 | I106: المصروفات | J106: قائمة الدخل | K106: الارباح والخسائر
A107: 135 | B107: 32708 | C107: مصاريف فرق تقويم عمله | D107: 327 | E107: مصروفات عموميه وإداريه أخرى | F107: 32 | G107: مصاريف عموميه وإداريه | H107: 3 | I107: المصروفات | J107: قائمة الدخل | K107: الارباح والخسائر
A108: 136 | B108: 32709 | C108: مصاريف نظافه | D108: 327 | E108: مصروفات عموميه وإداريه أخرى | F108: 32 | G108: مصاريف عموميه وإداريه | H108: 3 | I108: المصروفات | J108: قائمة الدخل | K108: الارباح والخسائر
A109: 137 | B109: 32710 | C109: مصاريف غرامات عموميه | D109: 327 | E109: مصروفات عموميه وإداريه أخرى | F109: 32 | G109: مصاريف عموميه وإداريه | H109: 3 | I109: المصروفات | J109: قائمة الدخل | K109: الارباح والخسائر
A110: 138 | B110: 32711 | C110: مصاريف مكافآت لغير العاملين عن خدمات مؤداه | D110: 327 | E110: مصروفات عموميه وإداريه أخرى | F110: 32 | G110: مصاريف عموميه وإداريه | H110: 3 | I110: المصروفات | J110: قائمة الدخل | K110: الارباح والخسائر
A111: 139 | B111: 32712 | C111: مصاريف سنوات سابقه | D111: 327 | E111: مصروفات عموميه وإداريه أخرى | F111: 32 | G111: مصاريف عموميه وإداريه | H111: 3 | I111: المصروفات | J111: قائمة الدخل | K111: الارباح والخسائر
A112: 140 | B112: 32713 | C112: مصاريف رسوم إداريه | D112: 327 | E112: مصروفات عموميه وإداريه أخرى | F112: 32 | G112: مصاريف عموميه وإداريه | H112: 3 | I112: المصروفات | J112: قائمة الدخل | K112: الارباح والخسائر
A113: 141 | B113: 32714 | C113: رسوم وضرائب | D113: 327 | E113: مصروفات عموميه وإداريه أخرى | F113: 32 | G113: مصاريف عموميه وإداريه | H113: 3 | I113: المصروفات | J113: قائمة الدخل | K113: الارباح والخسائر
A114: 145 | B114: 4211 | C114: إيرادات حجز فنادق عملاء مدفوعه | D114: 421 | E114: إيرادات خدمات عملاء فرع القاهره | F114: 42 | G114: إيرادات خدمات عملاء | H114: 4 | I114: إيــــرادات | J114: قائمة الدخل | K114: الارباح والخسائر
A115: 146 | B115: 4212 | C115: إيرادات حجز طيران عملاء مدفوعه | D115: 421 | E115: إيرادات خدمات عملاء كارت فرع إسكندريه | F115: 42 | G115: إيرادات خدمات عملاء | H115: 4 | I115: إيــــرادات | J115: قائمة الدخل | K115: الارباح والخسائر
A116: 169 | B116: 4331 | C116: إيرادات أخرى فرق تقويم عمله | D116: 433 | E116: إيرادات أخرى مختلفه | F116: 43 | G116: إيرادات أخرى | H116: 4 | I116: إيــــرادات | J116: قائمة الدخل | K116: الارباح والخسائر
A117: 170 | B117: 4332 | C117: ايرادت الاستثمار | D117: 433 | E117: إيرادات أخرى مختلفه | F117: 43 | G117: إيرادات أخرى | H117: 4 | I117: إيــــرادات | J117: قائمة الدخل | K117: الارباح والخسائر
A118: 171 | B118: 4333 | C118: خصم مكتسب | D118: 433 | E118: إيرادات أخرى مختلفه | F118: 43 | G118: إيرادات أخرى | H118: 4 | I118: إيــــرادات | J118: قائمة الدخل | K118: الارباح والخسائر
A119: 172 | B119: 4334 | C119: ارباح راسمالية | D119: 433 | E119: إيرادات أخرى مختلفه | F119: 43 | G119: إيرادات أخرى | H119: 4 | I119: إيــــرادات | J119: قائمة الدخل | K119: الارباح والخسائر
A120: 173 | B120: 4335 | C120: ايجارات دائنة | D120: 433 | E120: إيرادات أخرى مختلفه | F120: 43 | G120: إيرادات أخرى | H120: 4 | I120: إيــــرادات | J120: قائمة الدخل | K120: الارباح والخسائر
A121: 174 | B121: 4336 | C121: ايرادات اخرى متنوعة | D121: 433 | E121: إيرادات أخرى مختلفه | F121: 43 | G121: إيرادات أخرى | H121: 4 | I121: إيــــرادات | J121: قائمة الدخل | K121: الارباح والخسائر
A122: 175 | B122: 4337 | C122: إيرادات سنوات سابقه | D122: 433 | E122: إيرادات أخرى مختلفه | F122: 43 | G122: إيرادات أخرى | H122: 4 | I122: إيــــرادات | J122: قائمة الدخل | K122: الارباح والخسائر

Sheet يومية التسويات يناير 2020
B3: يومية التسويات عن شهر | G3: يناير 2020
B5: رقم القيد | C5: التاريخ | D5: عنوان القيد | E5: رقـــــم الحساب | F5: إسم الحســـــــــــاب | G5: مدين | H5: دائن | I5: بيــــــــان | J5: ملاحظـــــــــــات
C6: Date | E6: Codes | F6: Account | G6: Debit. | H6: Credit. | I6: Explanation | J6: Notes
B7: 1 | C7: 2020-01-01 | D7: قيمة مصاريف الخزينه عن شهر يناير 2020 | E7: =IF(F7="","",INDEX('دليل الحسابـــــــــــــات '!$B:$B,MATCH($F7,'دليل الحسابـــــــــــــات '!$C:$C,0))) -> 32705 | F7: مصاريف صيانه عموميه | G7: =400+500+1000+20 -> 1920
B8: 1 | C8: 2020-01-01 | D8: قيمة مصاريف الخزينه عن شهر يناير 2020 | E8: =IF(F8="","",INDEX('دليل الحسابـــــــــــــات '!$B:$B,MATCH($F8,'دليل الحسابـــــــــــــات '!$C:$C,0))) -> 32703 | F8: مصاريف مكتب أخرى عموميه | G8: =135+40+110 -> 285
B9: 1 | C9: 2020-01-01 | D9: قيمة مصاريف الخزينه عن شهر يناير 2020 | E9: =IF(F9="","",INDEX('دليل الحسابـــــــــــــات '!$B:$B,MATCH($F9,'دليل الحسابـــــــــــــات '!$C:$C,0))) -> 32709 | F9: مصاريف نظافه | G9: =106+50+97+50 -> 303
B10: 1 | C10: 2020-01-01 | D10: قيمة مصاريف الخزينه عن شهر يناير 2020 | E10: =IF(F10="","",INDEX('دليل الحسابـــــــــــــات '!$B:$B,MATCH($F10,'دليل الحسابـــــــــــــات '!$C:$C,0))) -> 3251 | F10: مصاريف بوفيه | G10: =40+10+32+67+49+51+29+48+87 -> 413
B11: 1 | C11: 2020-01-01 | D11: قيمة مصاريف الخزينه عن شهر يناير 2020 | E11: =IF(F11="","",INDEX('دليل الحسابـــــــــــــات '!$B:$B,MATCH($F11,'دليل الحسابـــــــــــــات '!$C:$C,0))) -> 3128 | F11: مصاريف كمبيوتر وشبكات | G11: =125+124+124+124+124+124+124+125 -> 994
B12: 1 | C12: 2020-01-01 | D12: قيمة مصاريف الخزينه عن شهر يناير 2020 | E12: =IF(F12="","",INDEX('دليل الحسابـــــــــــــات '!$B:$B,MATCH($F12,'دليل الحسابـــــــــــــات '!$C:$C,0))) -> 32706 | F12: إكراميات عموميه | G12: 250 | I12: قيمة الإكراميه الشهريه لموظفي أمن العماره
B13: 1 | C13: 2020-01-01 | D13: قيمة مصاريف الخزينه عن شهر يناير 2020 | E13: =IF(F13="","",INDEX('دليل الحسابـــــــــــــات '!$B:$B,MATCH($F13,'دليل الحسابـــــــــــــات '!$C:$C,0))) -> 2641 | F13: مرتبات مستحقه | G13: 69839
B14: 1 | C14: 2020-01-01 | D14: قيمة مصاريف الخزينه عن شهر يناير 2020 | E14: =IF(F14="","",INDEX('دليل الحسابـــــــــــــات '!$B:$B,MATCH($F14,'دليل الحسابـــــــــــــات '!$C:$C,0))) -> 3182 | F14: مصاريف مطبوعات | G14: 1800 | I14: قيمة مطبوعات مستندات الشركه
B15: 1 | C15: 2020-01-01 | D15: قيمة مصاريف الخزينه عن شهر يناير 2020 | E15: =IF(F15="","",INDEX('دليل الحسابـــــــــــــات '!$B:$B,MATCH($F15,'دليل الحسابـــــــــــــات '!$C:$C,0))) -> 1331 | F15: سلــــــف موظفين | G15: =200+700+200+500 -> 1600 | I15: نذير إسحاق700 +900سلفة جانيت أحمد
B16: 1 | C16: 2020-01-01 | D16: قيمة مصاريف الخزينه عن شهر يناير 2020 | E16: =IF(F16="","",INDEX('دليل الحسابـــــــــــــات '!$B:$B,MATCH($F16,'دليل الحسابـــــــــــــات '!$C:$C,0))) -> 3232 | F16: مصاريف كهرباء عموميه | G16: 210 | I16: فاتورة كهرباء شهر يناير ( ديسمبر)
B17: 1 | C17: 2020-01-01 | D17: قيمة مصاريف الخزينه عن شهر يناير 2020 | E17: =IF(F17="","",INDEX('دليل الحسابـــــــــــــات '!$B:$B,MATCH($F17,'دليل الحسابـــــــــــــات '!$C:$C,0))) -> 3262 | F17: مصاريف إنتقالات موظفين عموميه | G17: 25 | I17: مصاريف إنتقال من مول الكمبيوتر للشركه
B18: 1 | C18: 2020-01-01 | D18: قيمة مصاريف الخزينه عن شهر يناير 2020 | E18: =IF(F18="","",INDEX('دليل الحسابـــــــــــــات '!$B:$B,MATCH($F18,'دليل الحسابـــــــــــــات '!$C:$C,0))) -> 32704 | F18: مصاريف أدوات كتابيه عموميه | G18: 140 | I18: شراء 2روزمة ورق تصوير
B19: 1 | C19: 2020-01-01 | D19: قيمة مصاريف الخزينه عن شهر يناير 2020 | E19: =IF(F19="","",INDEX('دليل الحسابـــــــــــــات '!$B:$B,MATCH($F19,'دليل الحسابـــــــــــــات '!$C:$C,0))) -> 3241 | F19: مصاريف إيجار | G19: 8750 | I19: إيجار الشركه عن شهر يناير 2020
B20: 1 | C20: 2020-01-01 | D20: قيمة مصاريف الخزينه عن شهر يناير 2020 | E20: =IF(F20="","",INDEX('دليل الحسابـــــــــــــات '!$B:$B,MATCH($F20,'دليل الحسابـــــــــــــات '!$C:$C,0))) -> 32713 | F20: مصاريف رسوم إداريه | G20: 200 | I20: إشتراك الغزفه التجاريه 2020
B21: 1 | C21: 2020-01-01 | D21: قيمة مصاريف الخزينه عن شهر يناير 2020 | E21: =IF(F21="","",INDEX('دليل الحسابـــــــــــــات '!$B:$B,MATCH($F21,'دليل الحسابـــــــــــــات '!$C:$C,0))) -> 1211 | F21: خزينة الشركه - جنيه مصري | H21: 86729
E22: الإجمــــــــــــــــــالي | G22: =SUM(G7:G21) -> 86729 | H22: =SUM(H7:H21) -> 86729
B23: 2 | C23: 2020-01-31 | D23: تسوية سداد مستحقات أحمد الرويس وأمينه خالد من الحساب الشخصي ليوسف الدخيل | E23: =IF(F23="","",INDEX('دليل الحسابـــــــــــــات '!$B:$B,MATCH($F23,'دليل الحسابـــــــــــــات '!$C:$C,0))) -> 2641 | F23: مرتبات مستحقه | G23: 10000
B24: 2 | C24: 2020-01-31 | D24: تسوية سداد مستحقات أحمد الرويس وأمينه خالد من الحساب الشخصي ليوسف الدخيل | E24: =IF(F24="","",INDEX('دليل الحسابـــــــــــــات '!$B:$B,MATCH($F24,'دليل الحسابـــــــــــــات '!$C:$C,0))) -> 2641 | F24: مرتبات مستحقه | G24: 1000
B25: 2 | C25: 2020-01-31 | D25: تسوية سداد مستحقات أحمد الرويس وأمينه خالد من الحساب الشخصي ليوسف الدخيل | E25: =IF(F25="","",INDEX('دليل الحسابـــــــــــــات '!$B:$B,MATCH($F25,'دليل الحسابـــــــــــــات '!$C:$C,0))) -> 2641 | F25: مرتبات مستحقه | G25: 750
B26: 2 | C26: 2020-01-31 | D26: تسوية سداد مستحقات أحمد الرويس وأمينه خالد من الحساب الشخصي ليوسف الدخيل | E26: =IF(F26="","",INDEX('دليل الحسابـــــــــــــات '!$B:$B,MATCH($F26,'دليل الحسابـــــــــــــات '!$C:$C,0))) -> 2631 | F26: جاري شركــــــــاء دائن يوسف الدخيل | H26: 11750
E27: الإجمــــــــــــــــــالي | G27: =SUM(G23:G26) -> 11750 | H27: =SUM(H23:H26) -> 11750
B28: 3 | C28: 2020-01-03 | D28: إيراد حجز العميل 1 في فندق رمادا ميلان فايل 1 | E28: =IF(F28="","",INDEX('دليل الحسابـــــــــــــات '!$B:$B,MATCH($F28,'دليل الحسابـــــــــــــات '!$C:$C,0))) -> 1311 | F28: عملاء الشركه | G28: =2856.13*16 -> 45698.08 | J28: 2856.13
B29: 3 | C29: 2020-01-03 | D29: إيراد حجز العميل 1 في فندق رمادا ميلان فايل 1 | E29: =IF(F29="","",INDEX('دليل الحسابـــــــــــــات '!$B:$B,MATCH($F29,'دليل الحسابـــــــــــــات '!$C:$C,0))) -> 4211 | F29: إيرادات حجز فنادق عملاء مدفوعه | H29: =2856.13*16 -> 45698.08 | J29: 2856.13
E30: الإجمــــــــــــــــــالي | G30: =SUM(G28:G29) -> 45698.08 | H30: =SUM(H28:H29) -> 45698.08
B31: 4 | C31: 2020-01-03 | D31: مصروف حجز العميل 1 في فندق رمادا ميلان فايل 1 | E31: =IF(F31="","",INDEX('دليل الحسابـــــــــــــات '!$B:$B,MATCH($F31,'دليل الحسابـــــــــــــات '!$C:$C,0))) -> 3131 | F31: مصاريف حجز فنادق عملاء مدفوعه | G31: =2655*16 -> 42480 | J31: 2655
B32: 4 | C32: 2020-01-03 | D32: مصروف حجز العميل 1 في فندق رمادا ميلان فايل 1 | E32: =IF(F32="","",INDEX('دليل الحسابـــــــــــــات '!$B:$B,MATCH($F32,'دليل الحسابـــــــــــــات '!$C:$C,0))) -> 3132 | F32: مصاريف حجز طيران عملاء مدفوعه | G32: =117.2*16 -> 1875.2 | J32: 117.2
B33: 4 | C33: 2020-01-03 | D33: مصروف حجز العميل 1 في فندق رمادا ميلان فايل 1 | E33: =IF(F33="","",INDEX('دليل الحسابـــــــــــــات '!$B:$B,MATCH($F33,'دليل الحسابـــــــــــــات '!$C:$C,0))) -> 2512 | F33: موردين شركات سياحه | H33: =2655*16 -> 42480 | J33: 2655
B34: 4 | C34: 2020-01-03 | D34: مصروف حجز العميل 1 في فندق رمادا ميلان فايل 1 | E34: =IF(F34="","",INDEX('دليل الحسابـــــــــــــات '!$B:$B,MATCH($F34,'دليل الحسابـــــــــــــات '!$C:$C,0))) -> 2631 | F34: جاري شركــــــــاء دائن يوسف الدخيل | H34: =117.2*16 -> 1875.2 | J34: 117.2
E35: الإجمــــــــــــــــــالي | G35: =SUM(G31:G34) -> 44355.2 | H35: =SUM(H31:H34) -> 44355.2
B36: 5 | C36: 2020-01-06 | D36: إيراد حجز العميل 2 في فندق راديسون بلو الكويت فايل 2 | E36: =IF(F36="","",INDEX('دليل الحسابـــــــــــــات '!$B:$B,MATCH($F36,'دليل الحسابـــــــــــــات '!$C:$C,0))) -> 1235 | F36: بنك مصر ( دولار) | G36: =251.16*16 -> 4018.56 | J36: 257/251.16
B37: 5 | C37: 2020-01-06 | D37: إيراد حجز العميل 2 في فندق راديسون بلو الكويت فايل 2 | E37: =IF(F37="","",INDEX('دليل الحسابـــــــــــــات '!$B:$B,MATCH($F37,'دليل الحسابـــــــــــــات '!$C:$C,0))) -> 1311 | F37: عملاء الشركه | H37: =251.16*16 -> 4018.56 | J37: 257/251.16
B38: 5 | C38: 2020-01-06 | D38: إيراد حجز العميل 2 في فندق راديسون بلو الكويت فايل 2 | E38: =IF(F38="","",INDEX('دليل الحسابـــــــــــــات '!$B:$B,MATCH($F38,'دليل الحسابـــــــــــــات '!$C:$C,0))) -> 1311 | F38: عملاء الشركه | G38: =251.16*16 -> 4018.56 | J38: 257/251.16
B39: 5 | C39: 2020-01-06 | D39: إيراد حجز العميل 2 في فندق راديسون بلو الكويت فايل 2 | E39: =IF(F39="","",INDEX('دليل الحسابـــــــــــــات '!$B:$B,MATCH($F39,'دليل الحسابـــــــــــــات '!$C:$C,0))) -> 4211 | F39: إيرادات حجز فنادق عملاء مدفوعه | H39: =251.16*16 -> 4018.56 | J39: 257/251.16
E40: الإجمــــــــــــــــــالي | G40: =SUM(G36:G39) -> 8037.12 | H40: =SUM(H36:H39) -> 8037.12
B41: 6 | C41: 2020-01-09 | D41: سداد جزء من تحت حساب مديونية شركة المسافر | E41: =IF(F41="","",INDEX('دليل الحسابـــــــــــــات '!$B:$B,MATCH($F41,'دليل الحسابـــــــــــــات '!$C:$C,0))) -> 2512 | F41: موردين شركات سياحه | G41: =2000*16 -> 32000 | I41: شركة المسافر | J41: 2000
B42: 6 | C42: 2020-01-09 | D42: سداد جزء من تحت حساب مديونية شركة المسافر | E42: =IF(F42="","",INDEX('دليل الحسابـــــــــــــات '!$B:$B,MATCH($F42,'دليل الحسابـــــــــــــات '!$C:$C,0))) -> 2512 | F42: موردين شركات سياحه | G42: =2340*16 -> 37440 | I42: شركة المسافر | J42: 2340
B43: 6 | C43: 2020-01-09 | D43: سداد جزء من تحت حساب مديونية شركة المسافر | E43: =IF(F43="","",INDEX('دليل الحسابـــــــــــــات '!$B:$B,MATCH($F43,'دليل الحسابـــــــــــــات '!$C:$C,0))) -> 2632 | F43: جاري شركــــــــاء دائن عادل نور | H43: 69440 | I43: شركة المسافر | J43: 4340
E44: الإجمــــــــــــــــــالي | G44: =SUM(G41:G43) -> 69440 | H44: =SUM(H41:H43) -> 69440
B45: 7 | C45: 2020-01-06 | D45: قيمة شحن مكالمات خلال شهر يناير 2020 | E45: =IF(F45="","",INDEX('دليل الحسابـــــــــــــات '!$B:$B,MATCH($F45,'دليل الحسابـــــــــــــات '!$C:$C,0))) -> 3122 | F45: مصاريف مكالمات موبايلات | G45: =900*4.25 -> 3825
B46: 7 | C46: 2020-01-06 | D46: قيمة شحن مكالمات خلال شهر يناير 2020 | E46: =IF(F46="","",INDEX('دليل الحسابـــــــــــــات '!$B:$B,MATCH($F46,'دليل الحسابـــــــــــــات '!$C:$C,0))) -> 3128 | F46: مصاريف كمبيوتر وشبكات | G46: =200*16 -> 3200
B47: 7 | C47: 2020-01-06 | D47: قيمة شحن مكالمات خلال شهر يناير 2020 | E47: =IF(F47="","",INDEX('دليل الحسابـــــــــــــات '!$B:$B,MATCH($F47,'دليل الحسابـــــــــــــات '!$C:$C,0))) -> 2517 | F47: موردين تشغيل | H47: =7025 -> 7025
E48: الإجمــــــــــــــــــالي | G48: =SUM(G45:G47) -> 7025 | H48: =SUM(H45:H47) -> 7025
B49: 8 | C49: 2020-01-15 | D49: سداد دفعه من حساب شحن مكالمات للمورد | E49: =IF(F49="","",INDEX('دليل الحسابـــــــــــــات '!$B:$B,MATCH($F49,'دليل الحسابـــــــــــــات '!$C:$C,0))) -> 2517 | F49: موردين تشغيل | G49: =900*16 -> 14400
B50: 8 | C50: 2020-01-15 | D50: سداد دفعه من حساب شحن مكالمات للمورد | E50: =IF(F50="","",INDEX('دليل الحسابـــــــــــــات '!$B:$B,MATCH($F50,'دليل الحسابـــــــــــــات '!$C:$C,0))) -> 2632 | F50: جاري شركــــــــاء دائن عادل نور | H50: =900*16 -> 14400
E51: الإجمــــــــــــــــــالي | G51: =SUM(G49:G50) -> 14400 | H51: =SUM(H49:H50) -> 14400
B52: 9 | C52: 2020-01-22 | D52: قيمة شحن مكالمات خلال شهر يناير 2020 | E52: =IF(F52="","",INDEX('دليل الحسابـــــــــــــات '!$B:$B,MATCH($F52,'دليل الحسابـــــــــــــات '!$C:$C,0))) -> 2645 | F52: فواتير تليفونات مستحقه | G52: =2400*4.25 -> 10200
B53: 9 | C53: 2020-01-22 | D53: قيمة شحن مكالمات خلال شهر يناير 2020 | E53: =IF(F53="","",INDEX('دليل الحسابـــــــــــــات '!$B:$B,MATCH($F53,'دليل الحسابـــــــــــــات '!$C:$C,0))) -> 2632 | F53: جاري شركــــــــاء دائن عادل نور | H53: =2400*4.25 -> 10200
E54: الإجمــــــــــــــــــالي | G54: =SUM(G52:G53) -> 10200 | H54: =SUM(H52:H53) -> 10200
B55: 10 | C55: 2020-01-31 | D55: تسوية مرتبات الشركه عن شهر يناير 2020 | E55: =IF(F55="","",INDEX('دليل الحسابـــــــــــــات '!$B:$B,MATCH($F55,'دليل الحسابـــــــــــــات '!$C:$C,0))) -> 3111 | F55: مصاريف مرتبات ومكافآت | G55: 124865
B56: 10 | C56: 2020-01-31 | D56: تسوية مرتبات الشركه عن شهر يناير 2020 | E56: =IF(F56="","",INDEX('دليل الحسابـــــــــــــات '!$B:$B,MATCH($F56,'دليل الحسابـــــــــــــات '!$C:$C,0))) -> 2641 | F56: مرتبات مستحقه | H56: 114662.92
B57: 10 | C57: 2020-01-31 | D57: تسوية مرتبات الشركه عن شهر يناير 2020 | E57: =IF(F57="","",INDEX('دليل الحسابـــــــــــــات '!$B:$B,MATCH($F57,'دليل الحسابـــــــــــــات '!$C:$C,0))) -> 3111 | F57: مصاريف مرتبات ومكافآت | H57: 1666.66 | I57: غيابات
B58: 10 | C58: 2020-01-31 | D58: تسوية مرتبات الشركه عن شهر يناير 2020 | E58: =IF(F58="","",INDEX('دليل الحسابـــــــــــــات '!$B:$B,MATCH($F58,'دليل الحسابـــــــــــــات '!$C:$C,0))) -> 3111 | F58: مصاريف مرتبات ومكافآت | H58: 1503 | I58: خصومات
B59: 10 | C59: 2020-01-31 | D59: تسوية مرتبات الشركه عن شهر يناير 2020 | E59: =IF(F59="","",INDEX('دليل الحسابـــــــــــــات '!$B:$B,MATCH($F59,'دليل الحسابـــــــــــــات '!$C:$C,0))) -> 1331 | F59: سلــــــف موظفين | H59: 7032.42
E60: الإجمــــــــــــــــــالي | G60: =SUM(G55:G59) -> 124865 | H60: =SUM(H55:H59) -> 124865
B61: 11 | C61: 2020-01-31 | D61: قيمة تسوية مصاريف بنكيه بنك مصر جنيه مصري ورد الفرق شهر يناير 2020 | E61: =IF(F61="","",INDEX('دليل الحسابـــــــــــــات '!$B:$B,MATCH($F61,'دليل الحسابـــــــــــــات '!$C:$C,0))) -> 3161 | F61: مصاريف بنكيه | G61: 15.46
B62: 11 | C62: 2020-01-31 | D62: قيمة تسوية مصاريف بنكيه بنك مصر جنيه مصري ورد الفرق شهر يناير 2020 | E62: =IF(F62="","",INDEX('دليل الحسابـــــــــــــات '!$B:$B,MATCH($F62,'دليل الحسابـــــــــــــات '!$C:$C,0))) -> 1237 | F62: بنك مصر ( جنيه مصري ) | G62: 15.94
B63: 11 | C63: 2020-01-31 | D63: قيمة تسوية مصاريف بنكيه بنك مصر جنيه مصري ورد الفرق شهر يناير 2020 | E63: =IF(F63="","",INDEX('دليل الحسابـــــــــــــات '!$B:$B,MATCH($F63,'دليل الحسابـــــــــــــات '!$C:$C,0))) -> 1237 | F63: بنك مصر ( جنيه مصري ) | H63: 15.46
B64: 11 | C64: 2020-01-31 | D64: قيمة تسوية مصاريف بنكيه بنك مصر جنيه مصري ورد الفرق شهر يناير 2020 | E64: =IF(F64="","",INDEX('دليل الحسابـــــــــــــات '!$B:$B,MATCH($F64,'دليل الحسابـــــــــــــات '!$C:$C,0))) -> 3161 | F64: مصاريف بنكيه | H64: 15.94
E65: الإجمــــــــــــــــــالي | G65: =SUM(G61:G64) -> 31.4 | H65: =SUM(H61:H64) -> 31.4
B66: 12 | C66: 2020-01-31 | D66: إيداع في الحساب المصري لبنك مصر من حساب عادل نور | E66: =IF(F66="","",INDEX('دليل الحسابـــــــــــــات '!$B:$B,MATCH($F66,'دليل الحسابـــــــــــــات '!$C:$C,0))) -> 1237 | F66: بنك مصر ( جنيه مصري ) | G66: 16500
B67: 12 | C67: 2020-01-31 | D67: إيداع في الحساب المصري لبنك مصر من حساب عادل نور | E67: =IF(F67="","",INDEX('دليل الحسابـــــــــــــات '!$B:$B,MATCH($F67,'دليل الحسابـــــــــــــات '!$C:$C,0))) -> 2632 | F67: جاري شركــــــــاء دائن عادل نور | H67: 16500
E68: الإجمــــــــــــــــــالي | G68: =SUM(G66:G67) -> 16500 | H68: =SUM(H66:H67) -> 16500
B69: 13 | C69: 2020-01-31 | D69: تسوية مصاريف المراجعه عن شهر يناير 2020 | E69: =IF(F69="","",INDEX('دليل الحسابـــــــــــــات '!$B:$B,MATCH($F69,'دليل الحسابـــــــــــــات '!$C:$C,0))) -> 32707 | F69: مصاريف مراجعه عموميه | G69: 7500
B70: 13 | C70: 2020-01-31 | D70: تسوية مصاريف المراجعه عن شهر يناير 2020 | E70: =IF(F70="","",INDEX('دليل الحسابـــــــــــــات '!$B:$B,MATCH($F70,'دليل الحسابـــــــــــــات '!$C:$C,0))) -> 2517 | F70: موردين تشغيل | H70: 7500
E71: الإجمــــــــــــــــــالي | G71: =SUM(G69:G70) -> 7500 | H71: =SUM(H69:H70) -> 7500
B72: 14 | C72: 2020-01-31 | D72: قيمة تسوية مصاريف بنكيه بنك مصر ربال سعودي شهر يناير 2020 | E72: =IF(F72="","",INDEX('دليل الحسابـــــــــــــات '!$B:$B,MATCH($F72,'دليل الحسابـــــــــــــات '!$C:$C,0))) -> 3161 | F72: مصاريف بنكيه | G72: =J72*4 -> 105.24 | J72: 26.31
B73: 14 | C73: 2020-01-31 | D73: قيمة تسوية مصاريف بنكيه بنك مصر ربال سعودي شهر يناير 2020 | E73: =IF(F73="","",INDEX('دليل الحسابـــــــــــــات '!$B:$B,MATCH($F73,'دليل الحسابـــــــــــــات '!$C:$C,0))) -> 1236 | F73: بنك مصر ( ريال سعودي) | H73: =J73*4 -> 105.24 | J73: 26.31
E74: الإجمــــــــــــــــــالي | G74: =SUM(G72:G73) -> 105.24 | H74: =SUM(H72:H73) -> 105.24

Sheet يومية التسويات فبراير 2020
B3: يومية التسويات عن شهر | G3: فبراير 2020
B5: رقم القيد | C5: التاريخ | D5: عنوان القيد | E5: رقـــــم الحساب | F5: إسم الحســـــــــــاب | G5: مدين | H5: دائن | I5: بيــــــــان | J5: ملاحظـــــــــــات
C6: Date | E6: Codes | F6: Account | G6: Debit. | H6: Credit. | I6: Explanation | J6: Notes
B7: 1 | C7: 2020-01-01 | D7: قيمة مصاريف الخزينه عن شهر يناير 2020 | E7: =IF(F7="","",INDEX('دليل الحسابـــــــــــــات '!$B:$B,MATCH($F7,'دليل الحسابـــــــــــــات '!$C:$C,0))) -> 32705 | F7: مصاريف صيانه عموميه | G7: 765
B8: 1 | C8: 2020-01-01 | D8: قيمة مصاريف الخزينه عن شهر يناير 2020 | E8: =IF(F8="","",INDEX('دليل الحسابـــــــــــــات '!$B:$B,MATCH($F8,'دليل الحسابـــــــــــــات '!$C:$C,0))) -> 32703 | F8: مصاريف مكتب أخرى عموميه | G8: 187
B9: 1 | C9: 2020-01-01 | D9: قيمة مصاريف الخزينه عن شهر يناير 2020 | E9: =IF(F9="","",INDEX('دليل الحسابـــــــــــــات '!$B:$B,MATCH($F9,'دليل الحسابـــــــــــــات '!$C:$C,0))) -> 32709 | F9: مصاريف نظافه | G9: 800
B10: 1 | C10: 2020-01-01 | D10: قيمة مصاريف الخزينه عن شهر يناير 2020 | E10: =IF(F10="","",INDEX('دليل الحسابـــــــــــــات '!$B:$B,MATCH($F10,'دليل الحسابـــــــــــــات '!$C:$C,0))) -> 3251 | F10: مصاريف بوفيه | G10: 676
B11: 1 | C11: 2020-01-01 | D11: قيمة مصاريف الخزينه عن شهر يناير 2020 | E11: =IF(F11="","",INDEX('دليل الحسابـــــــــــــات '!$B:$B,MATCH($F11,'دليل الحسابـــــــــــــات '!$C:$C,0))) -> 3128 | F11: مصاريف كمبيوتر وشبكات | G11: 888
B12: 1 | C12: 2020-01-01 | D12: قيمة مصاريف الخزينه عن شهر يناير 2020 | E12: =IF(F12="","",INDEX('دليل الحسابـــــــــــــات '!$B:$B,MATCH($F12,'دليل الحسابـــــــــــــات '!$C:$C,0))) -> 32706 | F12: إكراميات عموميه | G12: 1000 | I12: قيمة الإكراميه الشهريه لموظفي أمن العماره
B13: 1 | C13: 2020-01-01 | D13: قيمة مصاريف الخزينه عن شهر يناير 2020 | E13: =IF(F13="","",INDEX('دليل الحسابـــــــــــــات '!$B:$B,MATCH($F13,'دليل الحسابـــــــــــــات '!$C:$C,0))) -> 2641 | F13: مرتبات مستحقه | G13: 71687
B14: 1 | C14: 2020-01-01 | D14: قيمة مصاريف الخزينه عن شهر يناير 2020 | E14: =IF(F14="","",INDEX('دليل الحسابـــــــــــــات '!$B:$B,MATCH($F14,'دليل الحسابـــــــــــــات '!$C:$C,0))) -> 3182 | F14: مصاريف مطبوعات | G14: 3000 | I14: قيمة مطبوعات مستندات الشركه
B15: 1 | C15: 2020-01-01 | D15: قيمة مصاريف الخزينه عن شهر يناير 2020 | E15: =IF(F15="","",INDEX('دليل الحسابـــــــــــــات '!$B:$B,MATCH($F15,'دليل الحسابـــــــــــــات '!$C:$C,0))) -> 1331 | F15: سلــــــف موظفين | G15: 4300 | I15: نذير إسحاق700 +900سلفة جانيت أحمد
B16: 1 | C16: 2020-01-01 | D16: قيمة مصاريف الخزينه عن شهر يناير 2020 | E16: =IF(F16="","",INDEX('دليل الحسابـــــــــــــات '!$B:$B,MATCH($F16,'دليل الحسابـــــــــــــات '!$C:$C,0))) -> 3232 | F16: مصاريف كهرباء عموميه | G16: 876 | I16: فاتورة كهرباء شهر يناير ( ديسمبر)
B17: 1 | C17: 2020-01-01 | D17: قيمة مصاريف الخزينه عن شهر يناير 2020 | E17: =IF(F17="","",INDEX('دليل الحسابـــــــــــــات '!$B:$B,MATCH($F17,'دليل الحسابـــــــــــــات '!$C:$C,0))) -> 3262 | F17: مصاريف إنتقالات موظفين عموميه | G17: 100 | I17: مصاريف إنتقال من مول الكمبيوتر للشركه
B18: 1 | C18: 2020-01-01 | D18: قيمة مصاريف الخزينه عن شهر يناير 2020 | E18: =IF(F18="","",INDEX('دليل الحسابـــــــــــــات '!$B:$B,MATCH($F18,'دليل الحسابـــــــــــــات '!$C:$C,0))) -> 32704 | F18: مصاريف أدوات كتابيه عموميه | G18: 199 | I18: شراء 2روزمة ورق تصوير
B19: 1 | C19: 2020-01-01 | D19: قيمة مصاريف الخزينه عن شهر يناير 2020 | E19: =IF(F19="","",INDEX('دليل الحسابـــــــــــــات '!$B:$B,MATCH($F19,'دليل الحسابـــــــــــــات '!$C:$C,0))) -> 3241 | F19: مصاريف إيجار | G19: 8750 | I19: إيجار الشركه عن شهر يناير 2020
B20: 1 | C20: 2020-01-01 | D20: قيمة مصاريف الخزينه عن شهر يناير 2020 | E20: =IF(F20="","",INDEX('دليل الحسابـــــــــــــات '!$B:$B,MATCH($F20,'دليل الحسابـــــــــــــات '!$C:$C,0))) -> 32713 | F20: مصاريف رسوم إداريه | G20: 100 | I20: إشتراك الغزفه التجاريه 2020
B21: 1 | C21: 2020-01-01 | D21: قيمة مصاريف الخزينه عن شهر يناير 2020 | E21: =IF(F21="","",INDEX('دليل الحسابـــــــــــــات '!$B:$B,MATCH($F21,'دليل الحسابـــــــــــــات '!$C:$C,0))) -> 1211 | F21: خزينة الشركه - جنيه مصري | H21: 93328
E22: الإجمــــــــــــــــــالي | G22: =SUM(G7:G21) -> 93328 | H22: =SUM(H7:H21) -> 93328
B23: 2 | C23: 2020-01-31 | D23: تسوية سداد مستحقات أحمد الرويس وأمينه خالد من الحساب الشخصي ليوسف الدخيل | E23: =IF(F23="","",INDEX('دليل الحسابـــــــــــــات '!$B:$B,MATCH($F23,'دليل الحسابـــــــــــــات '!$C:$C,0))) -> 2641 | F23: مرتبات مستحقه | G23: 11000
B24: 2 | C24: 2020-01-31 | D24: تسوية سداد مستحقات أحمد الرويس وأمينه خالد من الحساب الشخصي ليوسف الدخيل | E24: =IF(F24="","",INDEX('دليل الحسابـــــــــــــات '!$B:$B,MATCH($F24,'دليل الحسابـــــــــــــات '!$C:$C,0))) -> 2641 | F24: مرتبات مستحقه | G24: 800
B25: 2 | C25: 2020-01-31 | D25: تسوية سداد مستحقات أحمد الرويس وأمينه خالد من الحساب الشخصي ليوسف الدخيل | E25: =IF(F25="","",INDEX('دليل الحسابـــــــــــــات '!$B:$B,MATCH($F25,'دليل الحسابـــــــــــــات '!$C:$C,0))) -> 2641 | F25: مرتبات مستحقه | G25: 1000
B26: 2 | C26: 2020-01-31 | D26: تسوية سداد مستحقات أحمد الرويس وأمينه خالد من الحساب الشخصي ليوسف الدخيل | E26: =IF(F26="","",INDEX('دليل الحسابـــــــــــــات '!$B:$B,MATCH($F26,'دليل الحسابـــــــــــــات '!$C:$C,0))) -> 2631 | F26: جاري شركــــــــاء دائن يوسف الدخيل | H26: 12800
E27: الإجمــــــــــــــــــالي | G27: =SUM(G23:G26) -> 12800 | H27: =SUM(H23:H26) -> 12800
B28: 3 | C28: 2020-01-03 | D28: إيراد حجز العميل 1 في فندق رمادا ميلان فايل 1 | E28: =IF(F28="","",INDEX('دليل الحسابـــــــــــــات '!$B:$B,MATCH($F28,'دليل الحسابـــــــــــــات '!$C:$C,0))) -> 1311 | F28: عملاء الشركه | G28: 16000 | J28: 1000
B29: 3 | C29: 2020-01-03 | D29: إيراد حجز العميل 1 في فندق رمادا ميلان فايل 1 | E29: =IF(F29="","",INDEX('دليل الحسابـــــــــــــات '!$B:$B,MATCH($F29,'دليل الحسابـــــــــــــات '!$C:$C,0))) -> 4211 | F29: إيرادات حجز فنادق عملاء مدفوعه | H29: 16000 | J29: 1000
E30: الإجمــــــــــــــــــالي | G30: =SUM(G28:G29) -> 16000 | H30: =SUM(H28:H29) -> 16000
B31: 4 | C31: 2020-01-03 | D31: مصروف حجز العميل 1 في فندق رمادا ميلان فايل 1 | E31: =IF(F31="","",INDEX('دليل الحسابـــــــــــــات '!$B:$B,MATCH($F31,'دليل الحسابـــــــــــــات '!$C:$C,0))) -> 3131 | F31: مصاريف حجز فنادق عملاء مدفوعه | G31: =2655*16 -> 42480 | J31: 2655
B32: 4 | C32: 2020-01-03 | D32: مصروف حجز العميل 1 في فندق رمادا ميلان فايل 1 | E32: =IF(F32="","",INDEX('دليل الحسابـــــــــــــات '!$B:$B,MATCH($F32,'دليل الحسابـــــــــــــات '!$C:$C,0))) -> 3132 | F32: مصاريف حجز طيران عملاء مدفوعه | G32: =117.2*16 -> 1875.2 | J32: 117.2
B33: 4 | C33: 2020-01-03 | D33: مصروف حجز العميل 1 في فندق رمادا ميلان فايل 1 | E33: =IF(F33="","",INDEX('دليل الحسابـــــــــــــات '!$B:$B,MATCH($F33,'دليل الحسابـــــــــــــات '!$C:$C,0))) -> 2512 | F33: موردين شركات سياحه | H33: =2655*16 -> 42480 | J33: 2655
B34: 4 | C34: 2020-01-03 | D34: مصروف حجز العميل 1 في فندق رمادا ميلان فايل 1 | E34: =IF(F34="","",INDEX('دليل الحسابـــــــــــــات '!$B:$B,MATCH($F34,'دليل الحسابـــــــــــــات '!$C:$C,0))) -> 2631 | F34: جاري شركــــــــاء دائن يوسف الدخيل | H34: =117.2*16 -> 1875.2 | J34: 117.2
E35: الإجمــــــــــــــــــالي | G35: =SUM(G31:G34) -> 44355.2 | H35: =SUM(H31:H34) -> 44355.2
B36: 5 | C36: 2020-01-06 | D36: إيراد حجز العميل 2 في فندق راديسون بلو الكويت فايل 2 | E36: =IF(F36="","",INDEX('دليل الحسابـــــــــــــات '!$B:$B,MATCH($F36,'دليل الحسابـــــــــــــات '!$C:$C,0))) -> 1235 | F36: بنك مصر ( دولار) | G36: =251.16*16 -> 4018.56 | J36: 257/251.16
B37: 5 | C37: 2020-01-06 | D37: إيراد حجز العميل 2 في فندق راديسون بلو الكويت فايل 2 | E37: =IF(F37="","",INDEX('دليل الحسابـــــــــــــات '!$B:$B,MATCH($F37,'دليل الحسابـــــــــــــات '!$C:$C,0))) -> 1311 | F37: عملاء الشركه | H37: =251.16*16 -> 4018.56 | J37: 257/251.16
B38: 5 | C38: 2020-01-06 | D38: إيراد حجز العميل 2 في فندق راديسون بلو الكويت فايل 2 | E38: =IF(F38="","",INDEX('دليل الحسابـــــــــــــات '!$B:$B,MATCH($F38,'دليل الحسابـــــــــــــات '!$C:$C,0))) -> 1311 | F38: عملاء الشركه | G38: =251.16*16 -> 4018.56 | J38: 257/251.16
B39: 5 | C39: 2020-01-06 | D39: إيراد حجز العميل 2 في فندق راديسون بلو الكويت فايل 2 | E39: =IF(F39="","",INDEX('دليل الحسابـــــــــــــات '!$B:$B,MATCH($F39,'دليل الحسابـــــــــــــات '!$C:$C,0))) -> 4211 | F39: إيرادات حجز فنادق عملاء مدفوعه | H39: =251.16*16 -> 4018.56 | J39: 257/251.16
E40: الإجمــــــــــــــــــالي | G40: =SUM(G36:G39) -> 8037.12 | H40: =SUM(H36:H39) -> 8037.12
B41: 6 | C41: 2020-01-09 | D41: سداد جزء من تحت حساب مديونية شركة المسافر | E41: =IF(F41="","",INDEX('دليل الحسابـــــــــــــات '!$B:$B,MATCH($F41,'دليل الحسابـــــــــــــات '!$C:$C,0))) -> 2512 | F41: موردين شركات سياحه | G41: =2000*16 -> 32000 | I41: شركة المسافر | J41: 2000
B42: 6 | C42: 2020-01-09 | D42: سداد جزء من تحت حساب مديونية شركة المسافر | E42: =IF(F42="","",INDEX('دليل الحسابـــــــــــــات '!$B:$B,MATCH($F42,'دليل الحسابـــــــــــــات '!$C:$C,0))) -> 2512 | F42: موردين شركات سياحه | G42: =2340*16 -> 37440 | I42: شركة المسافر | J42: 2340
B43: 6 | C43: 2020-01-09 | D43: سداد جزء من تحت حساب مديونية شركة المسافر | E43: =IF(F43="","",INDEX('دليل الحسابـــــــــــــات '!$B:$B,MATCH($F43,'دليل الحسابـــــــــــــات '!$C:$C,0))) -> 2632 | F43: جاري شركــــــــاء دائن عادل نور | H43: 69440 | I43: شركة المسافر | J43: 4340
E44: الإجمــــــــــــــــــالي | G44: =SUM(G41:G43) -> 69440 | H44: =SUM(H41:H43) -> 69440
B45: 7 | C45: 2020-01-06 | D45: قيمة شحن مكالمات خلال شهر يناير 2020 | E45: =IF(F45="","",INDEX('دليل الحسابـــــــــــــات '!$B:$B,MATCH($F45,'دليل الحسابـــــــــــــات '!$C:$C,0))) -> 3122 | F45: مصاريف مكالمات موبايلات | G45: =900*4.25 -> 3825
B46: 7 | C46: 2020-01-06 | D46: قيمة شحن مكالمات خلال شهر يناير 2020 | E46: =IF(F46="","",INDEX('دليل الحسابـــــــــــــات '!$B:$B,MATCH($F46,'دليل الحسابـــــــــــــات '!$C:$C,0))) -> 3128 | F46: مصاريف كمبيوتر وشبكات | G46: =200*16 -> 3200
B47: 7 | C47: 2020-01-06 | D47: قيمة شحن مكالمات خلال شهر يناير 2020 | E47: =IF(F47="","",INDEX('دليل الحسابـــــــــــــات '!$B:$B,MATCH($F47,'دليل الحسابـــــــــــــات '!$C:$C,0))) -> 2517 | F47: موردين تشغيل | H47: =7025 -> 7025
E48: الإجمــــــــــــــــــالي | G48: =SUM(G45:G47) -> 7025 | H48: =SUM(H45:H47) -> 7025
B49: 8 | C49: 2020-01-15 | D49: سداد دفعه من حساب شحن مكالمات للمورد | E49: =IF(F49="","",INDEX('دليل الحسابـــــــــــــات '!$B:$B,MATCH($F49,'دليل الحسابـــــــــــــات '!$C:$C,0))) -> 2517 | F49: موردين تشغيل | G49: =900*16 -> 14400
B50: 8 | C50: 2020-01-15 | D50: سداد دفعه من حساب شحن مكالمات للمورد | E50: =IF(F50="","",INDEX('دليل الحسابـــــــــــــات '!$B:$B,MATCH($F50,'دليل الحسابـــــــــــــات '!$C:$C,0))) -> 2632 | F50: جاري شركــــــــاء دائن عادل نور | H50: =900*16 -> 14400
E51: الإجمــــــــــــــــــالي | G51: =SUM(G49:G50) -> 14400 | H51: =SUM(H49:H50) -> 14400
B52: 9 | C52: 2020-01-22 | D52: قيمة شحن مكالمات خلال شهر يناير 2020 | E52: =IF(F52="","",INDEX('دليل الحسابـــــــــــــات '!$B:$B,MATCH($F52,'دليل الحسابـــــــــــــات '!$C:$C,0))) -> 2645 | F52: فواتير تليفونات مستحقه | G52: =2400*4.25 -> 10200
B53: 9 | C53: 2020-01-22 | D53: قيمة شحن مكالمات خلال شهر يناير 2020 | E53: =IF(F53="","",INDEX('دليل الحسابـــــــــــــات '!$B:$B,MATCH($F53,'دليل الحسابـــــــــــــات '!$C:$C,0))) -> 2632 | F53: جاري شركــــــــاء دائن عادل نور | H53: =2400*4.25 -> 10200
E54: الإجمــــــــــــــــــالي | G54: =SUM(G52:G53) -> 10200 | H54: =SUM(H52:H53) -> 10200
B55: 10 | C55: 2020-01-31 | D55: تسوية مرتبات الشركه عن شهر يناير 2020 | E55: =IF(F55="","",INDEX('دليل الحسابـــــــــــــات '!$B:$B,MATCH($F55,'دليل الحسابـــــــــــــات '!$C:$C,0))) -> 3111 | F55: مصاريف مرتبات ومكافآت | G55: 124865
B56: 10 | C56: 2020-01-31 | D56: تسوية مرتبات الشركه عن شهر يناير 2020 | E56: =IF(F56="","",INDEX('دليل الحسابـــــــــــــات '!$B:$B,MATCH($F56,'دليل الحسابـــــــــــــات '!$C:$C,0))) -> 2641 | F56: مرتبات مستحقه | H56: 114662.92
B57: 10 | C57: 2020-01-31 | D57: تسوية مرتبات الشركه عن شهر يناير 2020 | E57: =IF(F57="","",INDEX('دليل الحسابـــــــــــــات '!$B:$B,MATCH($F57,'دليل الحسابـــــــــــــات '!$C:$C,0))) -> 3111 | F57: مصاريف مرتبات ومكافآت | H57: 1666.66 | I57: غيابات
B58: 10 | C58: 2020-01-31 | D58: تسوية مرتبات الشركه عن شهر يناير 2020 | E58: =IF(F58="","",INDEX('دليل الحسابـــــــــــــات '!$B:$B,MATCH($F58,'دليل الحسابـــــــــــــات '!$C:$C,0))) -> 3111 | F58: مصاريف مرتبات ومكافآت | H58: 1503 | I58: خصومات
B59: 10 | C59: 2020-01-31 | D59: تسوية مرتبات الشركه عن شهر يناير 2020 | E59: =IF(F59="","",INDEX('دليل الحسابـــــــــــــات '!$B:$B,MATCH($F59,'دليل الحسابـــــــــــــات '!$C:$C,0))) -> 1331 | F59: سلــــــف موظفين | H59: 7032.42
E60: الإجمــــــــــــــــــالي | G60: =SUM(G55:G59) -> 124865 | H60: =SUM(H55:H59) -> 124865
B61: 11 | C61: 2020-01-31 | D61: قيمة تسوية مصاريف بنكيه بنك مصر جنيه مصري ورد الفرق شهر يناير 2020 | E61: =IF(F61="","",INDEX('دليل الحسابـــــــــــــات '!$B:$B,MATCH($F61,'دليل الحسابـــــــــــــات '!$C:$C,0))) -> 3161 | F61: مصاريف بنكيه | G61: 15.46
B62: 11 | C62: 2020-01-31 | D62: قيمة تسوية مصاريف بنكيه بنك مصر جنيه مصري ورد الفرق شهر يناير 2020 | E62: =IF(F62="","",INDEX('دليل الحسابـــــــــــــات '!$B:$B,MATCH($F62,'دليل الحسابـــــــــــــات '!$C:$C,0))) -> 1237 | F62: بنك مصر ( جنيه مصري ) | G62: 15.94
B63: 11 | C63: 2020-01-31 | D63: قيمة تسوية مصاريف بنكيه بنك مصر جنيه مصري ورد الفرق شهر يناير 2020 | E63: =IF(F63="","",INDEX('دليل الحسابـــــــــــــات '!$B:$B,MATCH($F63,'دليل الحسابـــــــــــــات '!$C:$C,0))) -> 1237 | F63: بنك مصر ( جنيه مصري ) | H63: 15.46
B64: 11 | C64: 2020-01-31 | D64: قيمة تسوية مصاريف بنكيه بنك مصر جنيه مصري ورد الفرق شهر يناير 2020 | E64: =IF(F64="","",INDEX('دليل الحسابـــــــــــــات '!$B:$B,MATCH($F64,'دليل الحسابـــــــــــــات '!$C:$C,0))) -> 3161 | F64: مصاريف بنكيه | H64: 15.94
E65: الإجمــــــــــــــــــالي | G65: =SUM(G61:G64) -> 31.4 | H65: =SUM(H61:H64) -> 31.4
B66: 12 | C66: 2020-01-31 | D66: إيداع في الحساب المصري لبنك مصر من حساب عادل نور | E66: =IF(F66="","",INDEX('دليل الحسابـــــــــــــات '!$B:$B,MATCH($F66,'دليل الحسابـــــــــــــات '!$C:$C,0))) -> 1237 | F66: بنك مصر ( جنيه مصري ) | G66: 16500
B67: 12 | C67: 2020-01-31 | D67: إيداع في الحساب المصري لبنك مصر من حساب عادل نور | E67: =IF(F67="","",INDEX('دليل الحسابـــــــــــــات '!$B:$B,MATCH($F67,'دليل الحسابـــــــــــــات '!$C:$C,0))) -> 2632 | F67: جاري شركــــــــاء دائن عادل نور | H67: 16500
E68: الإجمــــــــــــــــــالي | G68: =SUM(G66:G67) -> 16500 | H68: =SUM(H66:H67) -> 16500
B69: 13 | C69: 2020-01-31 | D69: تسوية مصاريف المراجعه عن شهر يناير 2020 | E69: =IF(F69="","",INDEX('دليل الحسابـــــــــــــات '!$B:$B,MATCH($F69,'دليل الحسابـــــــــــــات '!$C:$C,0))) -> 32707 | F69: مصاريف مراجعه عموميه | G69: 7500
B70: 13 | C70: 2020-01-31 | D70: تسوية مصاريف المراجعه عن شهر يناير 2020 | E70: =IF(F70="","",INDEX('دليل الحسابـــــــــــــات '!$B:$B,MATCH($F70,'دليل الحسابـــــــــــــات '!$C:$C,0))) -> 2517 | F70: موردين تشغيل | H70: 7500
E71: الإجمــــــــــــــــــالي | G71: =SUM(G69:G70) -> 7500 | H71: =SUM(H69:H70) -> 7500
B72: 14 | C72: 2020-01-31 | D72: قيمة تسوية مصاريف بنكيه بنك مصر ربال سعودي شهر يناير 2020 | E72: =IF(F72="","",INDEX('دليل الحسابـــــــــــــات '!$B:$B,MATCH($F72,'دليل الحسابـــــــــــــات '!$C:$C,0))) -> 3161 | F72: مصاريف بنكيه | G72: =J72*4 -> 105.24 | J72: 26.31
B73: 14 | C73: 2020-01-31 | D73: قيمة تسوية مصاريف بنكيه بنك مصر ربال سعودي شهر يناير 2020 | E73: =IF(F73="","",INDEX('دليل الحسابـــــــــــــات '!$B:$B,MATCH($F73,'دليل الحسابـــــــــــــات '!$C:$C,0))) -> 1236 | F73: بنك مصر ( ريال سعودي) | H73: =J73*4 -> 105.24 | J73: 26.31
E74: الإجمــــــــــــــــــالي | G74: =SUM(G72:G73) -> 105.24 | H74: =SUM(H72:H73) -> 105.24

Sheet كشف الحساب
F4: =IF(G4="","",INDEX('دليل الحسابـــــــــــــات '!$B:$B,MATCH($G4,'دليل الحسابـــــــــــــات '!$C:$C,0))) -> 1131 | G4: تكييفات ومراوح | H4: المطلوب عند كتابة إسم الحساب تنزل البيانات المكتوبه باللون الأخضر لكل شهر
B6: رقم التسويه | C6: تاريخ التسويه | D6: بيان التسويه | E6: مدين | F6: دائن | G6: بيان | H6: ملاحظات
